[Event "Titled Tuesday Blitz November 08 Early 2022"]
[White "Trifan, Andrei Ioan"]
[Black "Donskov, Anatoly"]
[WhiteFideId "12967068"]
[BlackFideId "24143413"]
[WhiteElo "2208"]
[BlackElo "2219"]
[Result "1-0"]
[Round "04"]
[TimeControl "180+1"]
[Date "2022.11.09"]
[WhiteClock "0:00:10"]
[BlackClock "0:00:01"]

1. b3 {[%clk 0:03:00]}  Nf6 {[%clk 0:02:59]} 2. Bb2 {[%clk 0:03:01]}  g6 {[%clk 0:03:00]} 3. e3 {[%clk 0:03:01]}  Bg7 {[%clk 0:03:00]} 4. Nf3 {[%clk 0:03:01]}  O-O {[%clk 0:03:00]} 5. d4 {[%clk 0:03:01]}  d6 {[%clk 0:03:00]} 6. Be2 {[%clk 0:03:02]}  Nbd7 {[%clk 0:03:00]} 7. Nbd2 {[%clk 0:03:02]}  Re8 {[%clk 0:02:59]} 8. Kf1 {[%clk 0:03:00]}  e5 {[%clk 0:02:59]} 9. c4 {[%clk 0:02:56]}  c6 {[%clk 0:02:55]} 10. g3 {[%clk 0:02:52]}  e4 {[%clk 0:02:48]} 11. Ne1 {[%clk 0:02:52]}  d5 {[%clk 0:02:49]} 12. h4 {[%clk 0:02:49]}  c5 {[%clk 0:02:36]} 13. Ng2 {[%clk 0:02:45]}  cxd4 {[%clk 0:02:33]} 14. Bxd4 {[%clk 0:02:46]}  Ne5 {[%clk 0:02:32]} 15. Nf4 {[%clk 0:02:43]}  Bf5 {[%clk 0:02:27]} 16. h5 {[%clk 0:02:34]}  Rc8 {[%clk 0:01:31]} 17. h6 {[%clk 0:02:17]}  Bh8 {[%clk 0:01:31]} 18. cxd5 {[%clk 0:02:12]}  Nxd5 {[%clk 0:01:30]} 19. Nxd5 {[%clk 0:02:07]}  Qxd5 {[%clk 0:01:31]} 20. Nc4 {[%clk 0:02:08]}  Nd3 {[%clk 0:01:25]} 21. Bxh8 {[%clk 0:01:59]}  Kxh8 {[%clk 0:01:26]} 22. Qd2 {[%clk 0:01:56]}  b5 {[%clk 0:01:16]} 23. Qc3+ {[%clk 0:01:28]}  Ne5 {[%clk 0:01:15]} 24. Rd1 {[%clk 0:01:29]}  Qc5 {[%clk 0:00:53]} 25. g4 {[%clk 0:01:19]}  bxc4 {[%clk 0:00:31]} 26. b4 {[%clk 0:01:17]}  Qe7 {[%clk 0:00:22]} 27. gxf5 {[%clk 0:01:16]}  gxf5 {[%clk 0:00:23]} 28. Rh5 {[%clk 0:01:11]}  Qe6 {[%clk 0:00:21]} 29. Rd4 {[%clk 0:01:05]}  f6 {[%clk 0:00:20]} 30. a4 {[%clk 0:00:42]}  Nd3 {[%clk 0:00:20]} 31. Rd7 {[%clk 0:00:34]}  Rf8 {[%clk 0:00:15]} 32. Rxa7 {[%clk 0:00:31]}  Rg8 {[%clk 0:00:09]} 33. Ra5 {[%clk 0:00:27]}  Ne5 {[%clk 0:00:09]} 34. b5 {[%clk 0:00:18]}  Qf7 {[%clk 0:00:09]} 35. Rh3 {[%clk 0:00:14]}  Rcd8 {[%clk 0:00:05]} 36. Ra6 {[%clk 0:00:13]}  Rd7 {[%clk 0:00:02]} 37. Ke1 {[%clk 0:00:09]}  Rc7 {[%clk 0:00:02]} 38. Rd6 {[%clk 0:00:08]}  Rd7 {[%clk 0:00:02]} 39. Rxd7 {[%clk 0:00:08]}  Qxd7 {[%clk 0:00:03]} 40. Bxc4 {[%clk 0:00:09]}  Qc7 {[%clk 0:00:02]} 41. Qd4 {[%clk 0:00:07]}  Qxc4 {[%clk 0:00:02]} 42. Qxc4 {[%clk 0:00:08]}  Nxc4 {[%clk 0:00:03]} 43. Rh5 {[%clk 0:00:08]}  Ra8 {[%clk 0:00:02]} 44. Rxf5 {[%clk 0:00:08]}  Rxa4 {[%clk 0:00:02]} 45. Rxf6 {[%clk 0:00:09]}  Kg8 {[%clk 0:00:03]} 46. b6 {[%clk 0:00:07]}  Rb4 {[%clk 0:00:03]} 47. Re6 {[%clk 0:00:07]}  Nxb6 {[%clk 0:00:03]} 48. Re8+ {[%clk 0:00:07]}  Kf7 {[%clk 0:00:03]} 49. Rd8 {[%clk 0:00:08]}  Kg6 {[%clk 0:00:02]} 50. Rd6+ {[%clk 0:00:09]}  Kg5 {[%clk 0:00:02]} 51. Kf1 {[%clk 0:00:10]}  Rb2 {[%clk 0:00:02]} 52. Kg2 {[%clk 0:00:10]}  Nc4 {[%clk 0:00:02]} 53. Rc6 {[%clk 0:00:09]}  Ne5 {[%clk 0:00:01]} 54. Rc5 {[%clk 0:00:10]}  Kf5 {[%clk 0:00:01]} 55. Kg3 {[%clk 0:00:10]} 1-0


[Site "https://www.chess.com"]

[Event "Titled Tuesday Blitz November 08 Early 2022"]
[White "Vargas, Mauricio"]
[Black "Rose, Felix"]
[WhiteFideId "4404572"]
[BlackFideId "5105722"]
[WhiteElo "2025"]
[BlackElo "2039"]
[Result "0-1"]
[Round "04"]
[TimeControl "180+1"]
[Date "2022.11.09"]
[WhiteClock "0:00:01"]
[BlackClock "0:00:27"]

1. e4 {[%clk 0:03:00]}  c5 {[%clk 0:02:48]} 2. Nc3 {[%clk 0:02:58]}  Nc6 {[%clk 0:02:48]} 3. f4 {[%clk 0:02:59]}  g6 {[%clk 0:02:48]} 4. Nf3 {[%clk 0:02:55]}  Bg7 {[%clk 0:02:48]} 5. Bb5 {[%clk 0:02:54]}  Nd4 {[%clk 0:02:46]} 6. Bf1 {[%clk 0:02:52]}  e6 {[%clk 0:02:45]} 7. d3 {[%clk 0:02:49]}  Ne7 {[%clk 0:02:45]} 8. g4 {[%clk 0:02:48]}  O-O {[%clk 0:02:44]} 9. Bg2 {[%clk 0:02:47]}  Rb8 {[%clk 0:02:40]} 10. O-O {[%clk 0:02:46]}  b5 {[%clk 0:02:40]} 11. Ne2 {[%clk 0:02:46]}  Nxf3+ {[%clk 0:02:36]} 12. Bxf3 {[%clk 0:02:44]}  f5 {[%clk 0:02:36]} 13. Ng3 {[%clk 0:02:43]}  Bb7 {[%clk 0:02:32]} 14. Qe1 {[%clk 0:02:40]}  d5 {[%clk 0:02:14]} 15. e5 {[%clk 0:02:35]}  d4 {[%clk 0:02:10]} 16. g5 {[%clk 0:02:28]}  Bxf3 {[%clk 0:02:09]} 17. Rxf3 {[%clk 0:02:27]}  Qd5 {[%clk 0:02:06]} 18. Qf1 {[%clk 0:02:25]}  Nc6 {[%clk 0:02:06]} 19. h4 {[%clk 0:02:24]}  c4 {[%clk 0:02:05]} 20. h5 {[%clk 0:02:21]}  Nb4 {[%clk 0:01:58]} 21. hxg6 {[%clk 0:02:05]}  hxg6 {[%clk 0:01:57]} 22. dxc4 {[%clk 0:01:23]}  Qxc4 {[%clk 0:01:48]} 23. Qxc4 {[%clk 0:01:13]}  bxc4 {[%clk 0:01:49]} 24. c3 {[%clk 0:01:12]}  dxc3 {[%clk 0:01:43]} 25. Rxc3 {[%clk 0:01:08]}  Rfc8 {[%clk 0:01:04]} 26. Ne2 {[%clk 0:00:56]}  Nd5 {[%clk 0:01:03]} 27. Rf3 {[%clk 0:00:50]}  Kf7 {[%clk 0:01:02]} 28. Rb1 {[%clk 0:00:33]}  a5 {[%clk 0:00:57]} 29. Ra3 {[%clk 0:00:28]}  Rc5 {[%clk 0:00:49]} 30. Bd2 {[%clk 0:00:20]}  Nb4 {[%clk 0:00:41]} 31. Bc3 {[%clk 0:00:11]}  Bf8 {[%clk 0:00:40]} 32. Nd4 {[%clk 0:00:08]}  Nc6 {[%clk 0:00:29]} 33. Nxc6 {[%clk 0:00:07]}  Rxc6 {[%clk 0:00:30]} 34. Rxa5 {[%clk 0:00:05]}  Bc5+ {[%clk 0:00:28]} 35. Kg2 {[%clk 0:00:02]}  Bb4 {[%clk 0:00:26]} 36. Bxb4 {[%clk 0:00:01]}  Rxb4 {[%clk 0:00:27]} 0-1


[Site "https://www.chess.com"]

[Event "Titled Tuesday Blitz November 08 Early 2022"]
[White "Weetik, Vjacheslav"]
[Black "Zaksaite, Salomeja"]
[WhiteFideId "4153472"]
[BlackFideId "12801496"]
[WhiteElo "2469"]
[BlackElo "2079"]
[Result "1-0"]
[Round "04"]
[TimeControl "180+1"]
[Date "2022.11.09"]
[WhiteClock "0:01:00"]
[BlackClock "0:00:01"]

1. d4 {[%clk 0:02:53]}  Nf6 {[%clk 0:02:59]} 2. c4 {[%clk 0:02:53]}  g6 {[%clk 0:03:00]} 3. Nc3 {[%clk 0:02:53]}  d5 {[%clk 0:03:00]} 4. cxd5 {[%clk 0:02:52]}  Nxd5 {[%clk 0:03:00]} 5. e4 {[%clk 0:02:52]}  Nxc3 {[%clk 0:03:01]} 6. bxc3 {[%clk 0:02:53]}  Bg7 {[%clk 0:03:01]} 7. Bg5 {[%clk 0:02:54]}  c5 {[%clk 0:02:58]} 8. Rc1 {[%clk 0:02:50]}  O-O {[%clk 0:02:54]} 9. Nf3 {[%clk 0:02:49]}  Bg4 {[%clk 0:02:48]} 10. d5 {[%clk 0:02:48]}  f5 {[%clk 0:02:21]} 11. Bc4 {[%clk 0:02:17]}  Kh8 {[%clk 0:00:49]} 12. h3 {[%clk 0:02:08]}  fxe4 {[%clk 0:00:46]} 13. hxg4 {[%clk 0:02:07]}  exf3 {[%clk 0:00:46]} 14. gxf3 {[%clk 0:02:00]}  Qd6 {[%clk 0:00:24]} 15. Kf1 {[%clk 0:01:54]}  Nd7 {[%clk 0:00:23]} 16. Kg2 {[%clk 0:01:54]}  Ne5 {[%clk 0:00:23]} 17. Be2 {[%clk 0:01:52]}  c4 {[%clk 0:00:23]} 18. Qd2 {[%clk 0:01:31]}  Rad8 {[%clk 0:00:22]} 19. Rcd1 {[%clk 0:01:24]}  Nd3 {[%clk 0:00:11]} 20. Bxd3 {[%clk 0:01:19]}  cxd3 {[%clk 0:00:10]} 21. Qxd3 {[%clk 0:01:17]}  Qe5 {[%clk 0:00:10]} 22. Qxg6 {[%clk 0:01:12]}  h6 {[%clk 0:00:01]} 23. Rxh6+ {[%clk 0:01:00]} 1-0


[Site "https://www.chess.com"]

[Event "Titled Tuesday Blitz November 08 Early 2022"]
[White "Winkels, Marcel"]
[Black "Levitan, Caleb Levi"]
[WhiteFideId "1003887"]
[BlackFideId "14332620"]
[WhiteElo "1900"]
[BlackElo "1963"]
[Result "0-1"]
[Round "04"]
[TimeControl "180+1"]
[Date "2022.11.09"]
[WhiteClock "0:00:17"]
[BlackClock "0:00:10"]

1. e4 {[%clk 0:03:00]}  c5 {[%clk 0:02:59]} 2. Nf3 {[%clk 0:02:59]}  e6 {[%clk 0:02:59]} 3. b3 {[%clk 0:02:56]}  d5 {[%clk 0:02:56]} 4. Bb2 {[%clk 0:02:54]}  dxe4 {[%clk 0:02:53]} 5. Bb5+ {[%clk 0:02:52]}  Bd7 {[%clk 0:02:45]} 6. Bxd7+ {[%clk 0:02:46]}  Nxd7 {[%clk 0:02:46]} 7. Ne5 {[%clk 0:02:42]}  Nxe5 {[%clk 0:02:43]} 8. Bxe5 {[%clk 0:02:41]}  Nf6 {[%clk 0:02:43]} 9. Nc3 {[%clk 0:02:40]}  Be7 {[%clk 0:02:31]} 10. O-O {[%clk 0:02:36]}  O-O {[%clk 0:02:31]} 11. Qe2 {[%clk 0:02:36]}  b6 {[%clk 0:01:43]} 12. Rad1 {[%clk 0:02:32]}  Bd6 {[%clk 0:01:33]} 13. Bxf6 {[%clk 0:02:29]}  Qxf6 {[%clk 0:01:34]} 14. Nxe4 {[%clk 0:02:29]}  Qe7 {[%clk 0:01:34]} 15. Nxd6 {[%clk 0:02:24]}  Qxd6 {[%clk 0:01:35]} 16. d3 {[%clk 0:02:21]}  Rad8 {[%clk 0:01:35]} 17. Rfe1 {[%clk 0:02:20]}  Qd4 {[%clk 0:01:35]} 18. Qe3 {[%clk 0:02:20]}  Qb2 {[%clk 0:01:30]} 19. Qd2 {[%clk 0:02:16]}  Rd7 {[%clk 0:01:25]} 20. a4 {[%clk 0:02:15]}  Rfd8 {[%clk 0:01:15]} 21. Rb1 {[%clk 0:02:14]}  Qf6 {[%clk 0:01:10]} 22. a5 {[%clk 0:02:12]}  Rd4 {[%clk 0:01:06]} 23. axb6 {[%clk 0:02:10]}  axb6 {[%clk 0:01:05]} 24. Ra1 {[%clk 0:02:10]}  h6 {[%clk 0:00:59]} 25. Ra7 {[%clk 0:02:01]}  b5 {[%clk 0:01:00]} 26. Qa5 {[%clk 0:01:44]}  c4 {[%clk 0:00:54]} 27. bxc4 {[%clk 0:01:42]}  bxc4 {[%clk 0:00:54]} 28. dxc4 {[%clk 0:01:41]}  Rxc4 {[%clk 0:00:54]} 29. Ra8 {[%clk 0:01:18]}  Rxa8 {[%clk 0:00:43]} 30. Qxa8+ {[%clk 0:01:16]}  Kh7 {[%clk 0:00:43]} 31. Qa2 {[%clk 0:01:13]}  Rd4 {[%clk 0:00:38]} 32. h3 {[%clk 0:01:00]}  Rd2 {[%clk 0:00:35]} 33. Rf1 {[%clk 0:00:53]}  Qf5 {[%clk 0:00:35]} 34. Qb3 {[%clk 0:00:48]}  Rxc2 {[%clk 0:00:33]} 35. Qe3 {[%clk 0:00:47]}  g6 {[%clk 0:00:21]} 36. Re1 {[%clk 0:00:45]}  Rb2 {[%clk 0:00:20]} 37. Rf1 {[%clk 0:00:45]}  e5 {[%clk 0:00:16]} 38. Qc3 {[%clk 0:00:43]}  Rc2 {[%clk 0:00:13]} 39. Qb3 {[%clk 0:00:42]}  Re2 {[%clk 0:00:13]} 40. Qg3 {[%clk 0:00:36]}  e4 {[%clk 0:00:12]} 41. Qg4 {[%clk 0:00:35]}  Qxg4 {[%clk 0:00:11]} 42. hxg4 {[%clk 0:00:35]}  Kg7 {[%clk 0:00:12]} 43. Kh2 {[%clk 0:00:30]}  Kf6 {[%clk 0:00:12]} 44. Kg3 {[%clk 0:00:29]}  Kg5 {[%clk 0:00:10]} 45. f4+ {[%clk 0:00:28]}  exf3 {[%clk 0:00:09]} 46. gxf3 {[%clk 0:00:27]}  f5 {[%clk 0:00:09]} 47. gxf5 {[%clk 0:00:22]}  gxf5 {[%clk 0:00:08]} 48. Ra1 {[%clk 0:00:21]}  h5 {[%clk 0:00:06]} 49. f4+ {[%clk 0:00:21]}  Kg6 {[%clk 0:00:05]} 50. Kf3 {[%clk 0:00:21]}  Rc2 {[%clk 0:00:05]} 51. Rg1+ {[%clk 0:00:20]}  Kf6 {[%clk 0:00:05]} 52. Rg5 {[%clk 0:00:19]}  Rh2 {[%clk 0:00:05]} 53. Kg3 {[%clk 0:00:18]}  Rh1 {[%clk 0:00:05]} 54. Kg2 {[%clk 0:00:18]}  Rh4 {[%clk 0:00:05]} 55. Kg3 {[%clk 0:00:18]}  Rg4+ {[%clk 0:00:06]} 56. Rxg4 {[%clk 0:00:15]}  fxg4 {[%clk 0:00:06]} 57. Kg2 {[%clk 0:00:14]}  Kf5 {[%clk 0:00:05]} 58. Kg3 {[%clk 0:00:14]}  Ke4 {[%clk 0:00:06]} 59. Kh4 {[%clk 0:00:13]}  Kxf4 {[%clk 0:00:06]} 60. Kxh5 {[%clk 0:00:14]}  g3 {[%clk 0:00:07]} 61. Kh4 {[%clk 0:00:15]}  g2 {[%clk 0:00:08]} 62. Kh5 {[%clk 0:00:16]}  g1=Q {[%clk 0:00:09]} 63. Kh6 {[%clk 0:00:16]}  Kf5 {[%clk 0:00:09]} 64. Kh7 {[%clk 0:00:16]}  Kf6 {[%clk 0:00:10]} 65. Kh8 {[%clk 0:00:17]}  Qg7# {[%clk 0:00:10]} 0-1


[Site "https://www.chess.com"]

[Event "Titled Tuesday Blitz November 08 Early 2022"]
[White "Yuan, Qingyu"]
[Black "Bok, Benjamin"]
[WhiteFideId "8609772"]
[BlackFideId "1017063"]
[WhiteElo "2359"]
[BlackElo "2658"]
[Result "1/2-1/2"]
[Round "04"]
[TimeControl "180+1"]
[Date "2022.11.08"]
[WhiteClock "0:00:16"]
[BlackClock "0:00:04"]

1. e4 {[%clk 0:03:00]}  c5 {[%clk 0:02:59]} 2. Nf3 {[%clk 0:02:58]}  d6 {[%clk 0:02:59]} 3. Bb5+ {[%clk 0:02:59]}  Nd7 {[%clk 0:02:59]} 4. c4 {[%clk 0:02:59]}  Nf6 {[%clk 0:02:57]} 5. Nc3 {[%clk 0:02:58]}  g6 {[%clk 0:02:54]} 6. h3 {[%clk 0:02:58]}  Bg7 {[%clk 0:02:54]} 7. d3 {[%clk 0:02:59]}  O-O {[%clk 0:02:53]} 8. Ba4 {[%clk 0:02:59]}  b6 {[%clk 0:02:24]} 9. O-O {[%clk 0:02:54]}  Bb7 {[%clk 0:02:24]} 10. Bf4 {[%clk 0:02:46]}  a6 {[%clk 0:02:17]} 11. Rb1 {[%clk 0:02:43]}  Qc7 {[%clk 0:01:53]} 12. Qd2 {[%clk 0:02:39]}  e6 {[%clk 0:01:50]} 13. Bxd7 {[%clk 0:02:08]}  Nxd7 {[%clk 0:01:48]} 14. Bh6 {[%clk 0:02:08]}  e5 {[%clk 0:01:23]} 15. Nh2 {[%clk 0:01:06]}  f5 {[%clk 0:01:18]} 16. Bxg7 {[%clk 0:01:00]}  Kxg7 {[%clk 0:01:19]} 17. f3 {[%clk 0:01:00]}  Rae8 {[%clk 0:01:08]} 18. a3 {[%clk 0:00:59]}  Rf7 {[%clk 0:00:56]} 19. b4 {[%clk 0:00:59]}  Bc6 {[%clk 0:00:55]} 20. bxc5 {[%clk 0:00:36]}  bxc5 {[%clk 0:00:51]} 21. Ne2 {[%clk 0:00:27]}  f4 {[%clk 0:00:46]} 22. Rb2 {[%clk 0:00:22]}  Rff8 {[%clk 0:00:44]} 23. Rfb1 {[%clk 0:00:21]}  Rb8 {[%clk 0:00:44]} 24. Ng4 {[%clk 0:00:20]}  h5 {[%clk 0:00:41]} 25. Nf2 {[%clk 0:00:20]}  g5 {[%clk 0:00:41]} 26. Nc3 {[%clk 0:00:15]}  Rxb2 {[%clk 0:00:33]} 27. Rxb2 {[%clk 0:00:13]}  Rb8 {[%clk 0:00:34]} 28. Qc2 {[%clk 0:00:12]}  Rb6 {[%clk 0:00:26]} 29. Qb1 {[%clk 0:00:12]}  Rxb2 {[%clk 0:00:21]} 30. Qxb2 {[%clk 0:00:13]}  Qb6 {[%clk 0:00:21]} 31. Qxb6 {[%clk 0:00:12]}  Nxb6 {[%clk 0:00:22]} 32. Kf1 {[%clk 0:00:12]}  Nd7 {[%clk 0:00:18]} 33. Ke2 {[%clk 0:00:09]}  Nf8 {[%clk 0:00:18]} 34. Kd2 {[%clk 0:00:07]}  Ne6 {[%clk 0:00:18]} 35. Ne2 {[%clk 0:00:07]}  Kf6 {[%clk 0:00:17]} 36. Kc3 {[%clk 0:00:06]}  Bd7 {[%clk 0:00:17]} 37. Kd2 {[%clk 0:00:07]}  Nd8 {[%clk 0:00:16]} 38. Nc3 {[%clk 0:00:07]}  Be6 {[%clk 0:00:15]} 39. Ne2 {[%clk 0:00:07]}  Nf7 {[%clk 0:00:15]} 40. Kc3 {[%clk 0:00:07]}  Nh6 {[%clk 0:00:15]} 41. Kd2 {[%clk 0:00:07]}  g4 {[%clk 0:00:14]} 42. hxg4 {[%clk 0:00:08]}  hxg4 {[%clk 0:00:15]} 43. Ke1 {[%clk 0:00:09]}  g3 {[%clk 0:00:08]} 44. Nd1 {[%clk 0:00:09]}  Nf7 {[%clk 0:00:07]} 45. Ndc3 {[%clk 0:00:08]}  Nd8 {[%clk 0:00:07]} 46. Kd2 {[%clk 0:00:08]}  Ke7 {[%clk 0:00:07]} 47. Ke1 {[%clk 0:00:08]}  Nc6 {[%clk 0:00:07]} 48. Kf1 {[%clk 0:00:08]}  Kd7 {[%clk 0:00:07]} 49. Ke1 {[%clk 0:00:08]}  Ne7 {[%clk 0:00:07]} 50. Kf1 {[%clk 0:00:08]}  Ng8 {[%clk 0:00:07]} 51. Ke1 {[%clk 0:00:09]}  Nh6 {[%clk 0:00:07]} 52. Kf1 {[%clk 0:00:09]}  Nf7 {[%clk 0:00:07]} 53. Ke1 {[%clk 0:00:10]}  Ke7 {[%clk 0:00:06]} 54. Kf1 {[%clk 0:00:11]}  Nd8 {[%clk 0:00:06]} 55. Ke1 {[%clk 0:00:11]}  Nc6 {[%clk 0:00:06]} 56. Kf1 {[%clk 0:00:11]}  Ke8 {[%clk 0:00:07]} 57. Ke1 {[%clk 0:00:12]}  Ne7 {[%clk 0:00:07]} 58. Kf1 {[%clk 0:00:12]}  Bd7 {[%clk 0:00:07]} 59. Ke1 {[%clk 0:00:13]}  Bc6 {[%clk 0:00:07]} 60. Kf1 {[%clk 0:00:13]}  Ng6 {[%clk 0:00:08]} 61. Kg1 {[%clk 0:00:14]}  Nf8 {[%clk 0:00:08]} 62. Kf1 {[%clk 0:00:14]}  Ne6 {[%clk 0:00:09]} 63. Kg1 {[%clk 0:00:15]}  Kd7 {[%clk 0:00:09]} 64. Kf1 {[%clk 0:00:15]}  Kc7 {[%clk 0:00:08]} 65. Ke1 {[%clk 0:00:16]}  Kb6 {[%clk 0:00:08]} 66. Kf1 {[%clk 0:00:16]}  Nd4 {[%clk 0:00:07]} 67. Nxd4 {[%clk 0:00:11]}  cxd4 {[%clk 0:00:07]} 68. Nd1 {[%clk 0:00:11]}  Ka5 {[%clk 0:00:03]} 69. Nb2 {[%clk 0:00:11]}  Bd7 {[%clk 0:00:04]} 70. Ke2 {[%clk 0:00:11]}  Be6 {[%clk 0:00:04]} 71. Kf1 {[%clk 0:00:11]}  Bd7 {[%clk 0:00:03]} 72. Ke2 {[%clk 0:00:12]}  Ba4 {[%clk 0:00:04]} 73. Kd2 {[%clk 0:00:11]}  Bc6 {[%clk 0:00:03]} 74. Ke2 {[%clk 0:00:11]}  Bd7 {[%clk 0:00:04]} 75. Kf1 {[%clk 0:00:12]}  Kb6 {[%clk 0:00:04]} 76. Ke2 {[%clk 0:00:12]}  Kc7 {[%clk 0:00:04]} 77. Kf1 {[%clk 0:00:13]}  Be6 {[%clk 0:00:05]} 78. Ke2 {[%clk 0:00:13]}  Kc6 {[%clk 0:00:05]} 79. Kf1 {[%clk 0:00:13]}  Bf7 {[%clk 0:00:04]} 80. Ke2 {[%clk 0:00:13]}  Bh5 {[%clk 0:00:04]} 81. Na4 {[%clk 0:00:13]}  Bg6 {[%clk 0:00:03]} 82. Kf1 {[%clk 0:00:13]}  Be8 {[%clk 0:00:03]} 83. Ke2 {[%clk 0:00:12]}  Bd7 {[%clk 0:00:03]} 84. Nb2 {[%clk 0:00:12]}  Kc5 {[%clk 0:00:04]} 85. Kf1 {[%clk 0:00:12]}  Be6 {[%clk 0:00:03]} 86. Ke2 {[%clk 0:00:12]}  Bc8 {[%clk 0:00:03]} 87. Kf1 {[%clk 0:00:12]}  Kb6 {[%clk 0:00:03]} 88. Na4+ {[%clk 0:00:11]}  Kc6 {[%clk 0:00:03]} 89. Nb2 {[%clk 0:00:12]}  Bd7 {[%clk 0:00:03]} 90. Ke2 {[%clk 0:00:12]}  Be6 {[%clk 0:00:03]} 91. Na4 {[%clk 0:00:12]}  Bd7 {[%clk 0:00:03]} 92. Kf1 {[%clk 0:00:12]}  Kc7 {[%clk 0:00:03]} 93. Nb2 {[%clk 0:00:13]}  Be6 {[%clk 0:00:02]} 94. Ke2 {[%clk 0:00:13]}  Kd7 {[%clk 0:00:02]} 95. Kf1 {[%clk 0:00:14]}  Ke7 {[%clk 0:00:03]} 96. Ke2 {[%clk 0:00:13]}  Kf6 {[%clk 0:00:02]} 97. Kf1 {[%clk 0:00:13]}  Ke7 {[%clk 0:00:02]} 98. Na4 {[%clk 0:00:14]}  Kd7 {[%clk 0:00:02]} 99. Nb2 {[%clk 0:00:14]}  Kc6 {[%clk 0:00:03]} 100. Kg1 {[%clk 0:00:15]}  Kb6 {[%clk 0:00:03]} 101. Kf1 {[%clk 0:00:16]}  Ka5 {[%clk 0:00:03]} 102. Ke2 {[%clk 0:00:16]}  Bd7 {[%clk 0:00:04]} 103. Kf1 {[%clk 0:00:15]}  Bc6 {[%clk 0:00:04]} 104. Ke2 {[%clk 0:00:16]}  Be8 {[%clk 0:00:04]} 105. Kd2 {[%clk 0:00:15]}  Bd7 {[%clk 0:00:04]} 106. Ke2 {[%clk 0:00:16]} 1/2-1/2


[Site "https://www.chess.com"]

[Event "Titled Tuesday Blitz November 08 Early 2022"]
[White "Yurovskykh, Oleksandr"]
[Black "Madaminov, Mukhiddin"]
[WhiteFideId "14134020"]
[BlackFideId "14210703"]
[WhiteElo "2561"]
[BlackElo "2818"]
[Result "0-1"]
[Round "04"]
[TimeControl "180+1"]
[Date "2022.11.09"]
[WhiteClock "0:00:09"]
[BlackClock "0:00:14"]

1. d4 {[%clk 0:02:59]}  Nf6 {[%clk 0:03:00]} 2. Nf3 {[%clk 0:02:59]}  e6 {[%clk 0:03:00]} 3. Bf4 {[%clk 0:02:59]}  b6 {[%clk 0:02:59]} 4. e3 {[%clk 0:02:59]}  Bb7 {[%clk 0:02:59]} 5. Bd3 {[%clk 0:02:59]}  g6 {[%clk 0:02:56]} 6. O-O {[%clk 0:02:58]}  Bg7 {[%clk 0:02:56]} 7. h3 {[%clk 0:02:57]}  O-O {[%clk 0:02:56]} 8. Nbd2 {[%clk 0:02:56]}  d6 {[%clk 0:02:57]} 9. Bh2 {[%clk 0:02:56]}  Nbd7 {[%clk 0:02:57]} 10. Qe2 {[%clk 0:02:57]}  a5 {[%clk 0:02:54]} 11. c3 {[%clk 0:02:56]}  Qe7 {[%clk 0:02:53]} 12. e4 {[%clk 0:02:56]}  e5 {[%clk 0:02:53]} 13. Rfe1 {[%clk 0:02:57]}  Rfe8 {[%clk 0:02:52]} 14. Rad1 {[%clk 0:02:53]}  Rad8 {[%clk 0:02:51]} 15. Bb5 {[%clk 0:02:51]}  Rf8 {[%clk 0:02:46]} 16. Bg3 {[%clk 0:02:18]}  Nh5 {[%clk 0:02:43]} 17. Bh4 {[%clk 0:02:17]}  f6 {[%clk 0:02:38]} 18. Qe3 {[%clk 0:02:10]}  Nf4 {[%clk 0:02:28]} 19. Bg3 {[%clk 0:02:03]}  Bh6 {[%clk 0:02:26]} 20. Bxf4 {[%clk 0:02:03]}  Bxf4 {[%clk 0:02:26]} 21. Qe2 {[%clk 0:02:03]}  Kg7 {[%clk 0:02:23]} 22. g3 {[%clk 0:02:03]}  Bh6 {[%clk 0:02:22]} 23. d5 {[%clk 0:01:52]}  Qf7 {[%clk 0:02:15]} 24. Bxd7 {[%clk 0:01:23]}  Qxd7 {[%clk 0:02:12]} 25. Kg2 {[%clk 0:01:22]}  f5 {[%clk 0:02:12]} 26. c4 {[%clk 0:01:22]}  Bc8 {[%clk 0:02:10]} 27. Rh1 {[%clk 0:01:20]}  Rf7 {[%clk 0:01:42]} 28. exf5 {[%clk 0:01:18]}  Qxf5 {[%clk 0:01:33]} 29. Ne4 {[%clk 0:01:06]}  Rdf8 {[%clk 0:01:31]} 30. Nfd2 {[%clk 0:01:01]}  Kh8 {[%clk 0:01:21]} 31. b3 {[%clk 0:00:58]}  Bd7 {[%clk 0:00:59]} 32. f3 {[%clk 0:00:41]}  Bxd2 {[%clk 0:00:55]} 33. Nxd2 {[%clk 0:00:40]}  Qc2 {[%clk 0:00:54]} 34. Rhf1 {[%clk 0:00:24]}  Bf5 {[%clk 0:00:44]} 35. Rf2 {[%clk 0:00:21]}  Qxa2 {[%clk 0:00:43]} 36. Ne4 {[%clk 0:00:19]}  Qxb3 {[%clk 0:00:42]} 37. Ng5 {[%clk 0:00:19]}  Re7 {[%clk 0:00:40]} 38. g4 {[%clk 0:00:19]}  Bd7 {[%clk 0:00:39]} 39. h4 {[%clk 0:00:19]}  h6 {[%clk 0:00:39]} 40. Ne4 {[%clk 0:00:19]}  Rf4 {[%clk 0:00:39]} 41. g5 {[%clk 0:00:19]}  Rxh4 {[%clk 0:00:37]} 42. gxh6 {[%clk 0:00:17]}  Bf5 {[%clk 0:00:35]} 43. Ng5 {[%clk 0:00:14]}  Rh5 {[%clk 0:00:28]} 44. Qd2 {[%clk 0:00:13]}  Qxc4 {[%clk 0:00:26]} 45. Rh1 {[%clk 0:00:13]}  Rxh1 {[%clk 0:00:16]} 46. Kxh1 {[%clk 0:00:14]}  a4 {[%clk 0:00:15]} 47. Qb2 {[%clk 0:00:09]}  Qh4+ {[%clk 0:00:14]} 0-1


[Site "https://www.chess.com"]

[Event "Titled Tuesday Blitz November 08 Early 2022"]
[White "Zaichenko, Daria"]
[Black "Do Nascimento,Christian Almeida"]
[WhiteFideId "4197453"]
[BlackFideId "2143801"]
[WhiteElo "2039"]
[BlackElo "2079"]
[Result "0-1"]
[Round "04"]
[TimeControl "180+1"]
[Date "2022.11.09"]
[WhiteClock "0:00:55"]
[BlackClock "0:00:44"]

1. e4 {[%clk 0:03:00]}  c5 {[%clk 0:02:58]} 2. Nf3 {[%clk 0:03:00]}  d6 {[%clk 0:02:58]} 3. d4 {[%clk 0:03:00]}  cxd4 {[%clk 0:02:59]} 4. Nxd4 {[%clk 0:03:00]}  Nf6 {[%clk 0:02:59]} 5. Nc3 {[%clk 0:03:00]}  a6 {[%clk 0:03:00]} 6. Be3 {[%clk 0:02:54]}  e5 {[%clk 0:02:59]} 7. Nb3 {[%clk 0:02:54]}  Be6 {[%clk 0:02:59]} 8. f3 {[%clk 0:02:51]}  Nbd7 {[%clk 0:02:59]} 9. a4 {[%clk 0:02:49]}  Rc8 {[%clk 0:02:57]} 10. Qd2 {[%clk 0:02:49]}  Be7 {[%clk 0:02:54]} 11. Nd5 {[%clk 0:02:48]}  Bxd5 {[%clk 0:02:45]} 12. exd5 {[%clk 0:02:48]}  e4 {[%clk 0:02:44]} 13. Na5 {[%clk 0:02:40]}  Qc7 {[%clk 0:02:35]} 14. c4 {[%clk 0:02:26]}  exf3 {[%clk 0:02:25]} 15. gxf3 {[%clk 0:02:26]}  O-O {[%clk 0:02:18]} 16. Be2 {[%clk 0:02:23]}  Rfe8 {[%clk 0:02:14]} 17. O-O {[%clk 0:02:22]}  Bf8 {[%clk 0:02:05]} 18. Nb3 {[%clk 0:02:04]}  g6 {[%clk 0:01:54]} 19. Bd4 {[%clk 0:02:00]}  Bg7 {[%clk 0:01:52]} 20. Kh1 {[%clk 0:01:56]}  Qd8 {[%clk 0:01:31]} 21. Bd3 {[%clk 0:01:54]}  Nh5 {[%clk 0:01:26]} 22. Bxg7 {[%clk 0:01:36]}  Kxg7 {[%clk 0:01:27]} 23. f4 {[%clk 0:01:33]}  Qh4 {[%clk 0:01:23]} 24. Qf2 {[%clk 0:01:32]}  Qh3 {[%clk 0:01:10]} 25. Rad1 {[%clk 0:01:24]}  Re3 {[%clk 0:01:07]} 26. Qg2 {[%clk 0:01:01]}  Rxd3 {[%clk 0:00:48]} 27. Qxh3 {[%clk 0:01:00]}  Rxh3 {[%clk 0:00:48]} 28. Nd2 {[%clk 0:00:57]}  Rd3 {[%clk 0:00:46]} 29. Kg2 {[%clk 0:00:55]}  Ndf6 {[%clk 0:00:44]} 0-1


[Site "https://www.chess.com"]